{"text_format":"3","workbook":"xlsx","n_sheets":3,"sheets":["GT&CONDITIONS","Rod & Bars Resin Quantity","Foglio2"],"not_rendered":{"images":3,"macros":1,"defined_names":18},"read":"whole","date_system":"1900"}

{"sheet":"GT&CONDITIONS","index":0,"n_rows":57,"n_cols":5,"rows_kept":57,"merged":[[1,3,3,3],[2,4,3,4],[6,2,8,4],[13,2,13,4],[17,2,17,4],[21,2,21,4],[25,2,25,4],[29,2,29,4],[33,2,33,4],[37,2,37,4],[41,2,41,4],[45,2,45,4],[49,2,49,4],[53,2,53,4],[54,2,54,4],[56,0,58,5]]}
[]
[{"$nulls":3},"Resin_Quantity_Calculator\nv.1.06","Language"]
[{"$nulls":4},"EN"]
[]
[]
[{"$nulls":3},"RESIN QUANTITY CALCULATOR"]
[null,null,"GENERAL TERMS AND CONDITIONS OF THE LICENSE AGREEMENT FOR THE USE OF THE SPREADSHEET \"Resin_Quantity_Calculator\""]
[]
[]
[]
[]
[null,"1. SUBJECT"]
[]
[null,null,"With these General Terms and Conditions (or \"Agreement\"), ROTHO BLAAS SRL, with registered office at I-39040 Cortaccia (BZ), Via dell'Adige 2/1 (hereinafter \"RB\") grants the user the non-exclusive and revocable right to use the spreadsheet (hereinafter \"XLS\") free of charge under the following conditions and during the term of this Agreement.\n\nIn any case, RB does not guarantee the legal and design conformity of the calculations, as RB intends to provide only an indicative calculation tool to be considered as a technical-commercial service within the sales activity.\n\nXLS allows the user to perform static calculations only for the products and materials indicated in each of its sections. This Agreement expressly prohibits to use XLS to manufacture products that are not indicated.\n\nThis Agreement therefore governs the relationship between the User and RB with respect to the use of this spreadsheet. By downloading and using XLS, the user accepts this Agreement and the conditions set out herein."]
[]
[null,"2. RB RIGHTS AND OBLIGATIONS"]
[]
[null,null,"RB:\n\na) makes available XLS to the User free of charge, as it is;\n\nb) does not provide the user with any technical support for using XLS;\n\nc) does not guarantee that XLS complies with the regulations in force or with the calculations design made using it. In particular, as a result of changes to the relevant provisions, such as standards, approvals, etc., the spreadsheet may become invalid in part or in full.\n\nd) while reserving the right to update, revise and develop XLS, RB does not assume any obligation towards the user to verify, correct, complete or update the spreadsheet and/or make the updates available to the user."]
[]
[null,"3. USER RIGHTS AND OBLIGATIONS"]
[]
[null,null,"The User declares to use the spreadsheet as a professional excluding any use as a consumer, and to always comply with the following obligations and prohibitions:\n\na) obligation and responsibility to verify that XLS meets the specific needs and that it is compatible with the hardware-software-systems;\n\nb) obligation to verify, for each use, the compliance of the calculations made through XLS to the regulations in force and to the project;\n\nc) obligation to verify the legal compliance of the calculations made through the Software;\n\nd) obligation to use the latest version of XLS made available by the RB contact person, checking at each use for any updates that have occurred;\n\ne) prohibition to use XLS for products not indicated in each calculation section;\n\nf) obligation to use updated antivirus software that complies with the industry standard in force;\n\ng) obligation not to assign the licence to use XLS to third parties and/or in any other way transfer, pledge or lease, rent or share with others or sublicense the rights to use the spreadsheet;\n\nh) prohibition to modify or vary XLS in any way, including through third parties.\n\nThe user commits himself to ask the RB contact person for the last version of the XLS."]
[]
[null,"4. COPYRIGHTS"]
[]
[null,null,"The copyrights on the formulations referred to in the spreadsheet and all the intellectual and industrial property rights underlying them (such as, but not limited to: trademarks, patents, trade secrets, know-how, confidential information) are and remain the exclusive property of RB. \n\nThis agreement does not transfer any of the above rights to the user."]
[]
[null,"5. DURATION, WITHDRAWAL AND TERMINATION"]
[]
[null,null,"These general conditions and, consequently, the licence to use the spreadsheet, are valid from the moment of downloading it until the termination of its use.\n\nThe user may withdraw from this Agreement at any time by deleting the XLS and all copies from its systems.\n\nRB may withdraw from this Agreement and deactivate the service in the event of a breach of any of the provisions governing the license of use. In the event that RB notifies its termination, the user shall remove the spreadsheet and any copies thereof from its systems."]
[]
[null,"6. RESPONSIBILITY"]
[]
[null,null,"The user is solely responsible for the use of XLS, including, but not limited to, all calculations, printouts, export data made with it and/or for entry errors, protection of data files and maintenance and in general for any use of the spreadsheet.\n\nRB does not guarantee and in no case can be held responsible for damages, losses and costs or other consequences, for any reason (warranty for defects, warranty for malfunction, product or legal responsibility, etc.) deriving from:\n\n•   use of XLS, calculations made, compliance with current legislation, with the design or other User needs;\n\n•   hardware and software compatibility, viruses, malfunctions, defects, errors or gaps;\n\n•   failure to update the spreadsheet and/or interruption of the availability of the spreadsheet and/or termination of the agreement for any reason;\n\n•   infringement of intellectual property rights of third parties.\n\nThe user confirms to have understood and accepted the disclaimers and limitations of liability and claim of this Agreement. The user also confirms that the spreadsheet is available for free, that the exclusions and limitations are fundamental elements of this Agreement and that RB does not make its spreadsheet available to the user if the exclusions or limitations are deleted or modified in favour of the user."]
[]
[null,"7. REFUND"]
[]
[null,null,"The user agrees to indemnify and hold harmless RB, its subsidiaries and its or its officers, directors, employees, successors and appointees (each individually, \"\"Beneficiary\"\", collectively, the \"\"Beneficiaries\"\") for the costs incurred in relation to claims made by third parties for damages or losses deriving from the use of the spreadsheet by the user (including, but not limited to, fees and management costs incurred by RB)."]
[]
[null,"8. MISCELLANEOUS"]
[]
[null,null,"These general conditions constitute the entire agreement between RB and the user regarding the subject matter and replace all previous, oral or written agreements, as well as any agreements between RB and the user."]
[]
[null,"9. LANGUAGE"]
[]
[null,null,"In the event of differences between versions of these conditions in the various languages, the English text is binding and takes precedence with respect to the translations."]
[]
[null,"10. APPLICABLE LAW AND COURT OF JURISDICTION"]
[]
[null,null,"This agreement and any relationship between the parties is governed exclusively by the Italian law. \nAny dispute that may arise between the parties in relation to this agreement, that cannot be resolved amicably, shall be brought before the court of Bolzano."]
[]
[null,"11. PRIVACY"]
[]
[null,null,"Refer to the privacy policy available at the link:"]
[null,null,"https://www.rothoblaas.com/privacy-policy"]
[]
["ACCEPT"]

{"sheet":"Rod & Bars Resin Quantity","index":1,"n_rows":61,"n_cols":30,"rows_kept":61,"merged":[[3,5,3,7],[5,1,5,7],[6,1,6,7],[11,2,11,4],[41,1,41,2]]}
[{"$nulls":10},"INDEX",{"$nulls":13},"EPO-FIX Epoxy Chemical Anchor [585 ml]","HYB-FIX Hybrid Chemical Anchor [280 ml]","HYB-FIX Hybrid Chemical Anchor [420 ml]","VIN-FIX Vinylester Chemical Anchor [300 ml]","VIN-FIX Vinylester Chemical Anchor [420 ml]","VIN-FIX PRO NORDIC Vinylester Chemical Anchor [410 ml]"]
[{"$nulls":10},{"$f":"MATCH(C12,L1:L13,0)","v":11},{"$nulls":11},"d1 [mm]","d2 [mm]","d0 [mm]","d0 [mm]","d0 [mm]","d0 [mm]","d0 [mm]","d0 [mm]"]
[{"$nulls":21},{"$f":"CONCATENATE(\"M\",W3)","v":"M8"},8,6.47,10,10,10,10,10,10]
[{"$nulls":5},"RESIN QUANTITY CALCULATOR version 1.06  ",{"$nulls":15},{"$f":"CONCATENATE(\"M\",W4)","v":"M10"},10,8.16,12,12,12,12,12,12]
[{"$nulls":21},"M12",12,9.85,14,14,14,14,14,14]
[null,"RESIN QUANTITY CALCULATION",{"$nulls":19},{"$f":"CONCATENATE(\"M\",W6)","v":"M16"},16,13.55,18,18,18,18,18,18]
[null,"for doweling threaded rods and bars in solid materials",{"$nulls":19},{"$f":"CONCATENATE(\"M\",W7)","v":"M20"},20,16.93,22,22,22,24,24,22]
[{"$nulls":11},"EPO-FIX Epoxy Chemical Anchor [585 ml]","EPO585",0.585,"[585]","ml","CARTRIDGES",{"$nulls":4},{"$f":"CONCATENATE(\"M\",W8)","v":"M24"},24,20.32,28,28,28,28,28,26]
[{"$nulls":11},"HYB-FIX Hybrid Chemical Anchor [280 ml]","HYB280",0.28,"[280]","ml","CARTRIDGES",{"$nulls":4},{"$f":"CONCATENATE(\"M\",W9)","v":"M27"},27,23.32,30,30,30,30,30,30]
[null,"PRODUCT AND HOLE GEOMETRY",{"$nulls":9},"HYB-FIX Hybrid Chemical Anchor [420 ml]","HYB420",0.42,"[420]","ml","CARTRIDGES",{"$nulls":4},{"$f":"CONCATENATE(\"M\",W10)","v":"M30"},30,25.71,35,35,35,35,35,35]
[{"$nulls":11},"VIN-FIX Vinylester Chemical Anchor [300 ml]","FIX300",0.3,"[300]","ml","CARTRIDGES"]
[null,"Product Selection","VIN-FIX Vinylester Chemical Anchor [300 ml]",{"$nulls":8},"VIN-FIX Vinylester Chemical Anchor [420 ml]","FIX420",0.42,"[420]","ml","CARTRIDGES"]
[{"$nulls":11},"VIN-FIX PRO NORDIC Vinylester Chemical Anchor [410 ml]","VIN410N",0.41,"[ 410 ]","ml","CARTRIDGES"]
[null,"Rod Diameter",{"v":20,"d":"M20 mm"},{"$f":"C14/25.4","v":{"v":0.7874015748031497,"d":"0.79 in"}}]
[null,"Hole Diameter",{"$f":"VLOOKUP(C14,W1:AD10,MATCH(C12,W1:AD1,0),FALSE)","v":{"v":24,"d":"24 mm"}},{"$f":"C15/25.4","v":{"v":0.9448818897637796,"d":"0.94 in"}}]
[null,"Hole Depth",{"v":164,"d":"164 mm"},{"$f":"C16/25.4","v":{"v":6.456692913385827,"d":"6.46 in"}}]
[null,"Total No. of Holes",50]
[{"$nulls":11},"Waste Factor",{"$f":"1+C19","v":1}]
[null,"Overage Factor",{"v":0,"d":"0%"}]
[]
[]
[]
[null,"Unit Conversion"]
[null,"Unit conversions are not considered in the calculation of resin or epoxy and are provided for the user's convenience"]
[]
[null,{"v":20,"d":"20.0 mm"},{"$f":"B26/25.4","v":{"v":0.7874015748031497,"d":"0.79 in"}}]
[null,{"v":6.5,"d":"6.50 in"},{"$f":"B27*25.4","v":{"v":165.1,"d":"165.1 mm"}}]
[]
[]
[null,"ORDER SUMMARY"]
[null,"Total Hole Volume*",{"$f":"C48","v":{"v":2473061.736905885,"d":"2,473,062"}},"mm3",null,null,{"$f":"F48","v":{"v":2.473061736905885,"d":"2.47"}},"Liters"]
[null,"Including waste factor"]
[]
[null,{"$f":"INDEX(L1:L15,K2)","v":"VIN-FIX Vinylester Chemical Anchor [300 ml]"},null,null,"code",{"$f":"INDEX(M1:M15,K2)","v":"FIX300"},{"$f":"CEILING(F48/INDEX(N1:N13,K2),1)","v":9},"CARTRIDGES"]
[]
[]
[null,"CALCULATIONS"]
[null,"Hole Area",{"$f":"(C15*C15)*PI()/4","v":{"v":452.3893421169302,"d":"452.4"}},"mm2",null,{"$f":"((C15/1000)*(C15/1000))*PI()/4","v":{"v":4.523893421169302E-4,"d":"0.000452"}},"m2"]
[null,"Rod Area",null,"mm2",null,null,"m2"]
[null,"Area Difference",{"$f":"C38-C39","v":{"v":452.3893421169302,"d":"452.4"}},"mm2",null,{"$f":"F38-F39","v":{"v":4.523893421169302E-4,"d":"0.000452"}},"m2"]
[]
[null,"\"Net\" Volume to be Filled"]
[null,"Single Hole Volume",{"$f":"C38*((2/3)*C16)","v":{"v":49461.2347381177,"d":"49,461"}},"mm3",null,{"$f":"C43/(10^6)","v":{"v":0.049461234738117706,"d":"0.0494612"}},"dm3 (or liters)"]
[null,"Total Hole Volume",{"$f":"C43*C17","v":{"v":2473061.736905885,"d":"2,473,062"}},"mm3",null,{"$f":"F43*C17","v":{"v":2.473061736905885,"d":"2.473062"}},"dm3 (or liters)"]
[]
[null,"Volume to be Filled Considering Waste"]
[null,"Single Hole Volume",{"$f":"C43*$M$18","v":{"v":49461.2347381177,"d":"49,461"}},"mm3",null,{"$f":"$M$18*F43","v":{"v":0.049461234738117706,"d":"0.049461"}},"dm3 (or liters)"]
[null,"Total Hole Volume",{"$f":"C47*C17","v":{"v":2473061.736905885,"d":"2,473,062"}},"mm3",null,{"$f":"F47*C17","v":{"v":2.473061736905885,"d":"2.473062"}},"dm3 (or liters)"]
[]
[null,"NOTES:"]
[null,"1. This calculation estimates resin quantity considering the following application guideline given in product ETA:"]
[]
[]
[]
[]
[]
[]
[null,"2. This calculation estimates resin quantity based on the selected overage factor. Overage is often dependent on the application and intaller experience"]
[null,"3. Rothoblaas reserves the right to update or change calculation methods, designs or models without notice or liability"]
[null,"4. Visit www.rothoblaas.com for the most up to date design resources"]
[null,"5. Product application and injection shall be according to Rothoblaas literature for the intended use"]

{"sheet":"Foglio2","index":2,"n_rows":9,"n_cols":5,"rows_kept":9,"hidden":true}
[]
[null,null,"Fissaggi",null,90]
[null,null,"VIN-FIX",null,110]
[null,null,"VIN-FIX PRO",null,150]
[null,null,"SKR-E 12",null,210]
[null,null,"HYB-FIX",null,250]
[null,null,"EPO-FIX PLUS",null,290]
[]
[{"$nulls":4},200]